{"text_format":"3","workbook":"xlsx","n_sheets":4,"sheets":["Overzicht maandelijks budget","Inkomsten","Uitgaven personeel","Operationele kosten"],"not_rendered":{"charts":1,"images":1,"defined_names":14},"read":"whole","date_system":"1900"}

{"sheet":"Overzicht maandelijks budget","index":0,"n_rows":17,"n_cols":5,"rows_kept":17,"merged":[[0,1,0,3],[0,6,1,18],[1,1,1,3],[9,1,9,4]]}
[null,"     BEDRIJFSNAAM",null,null,"DATUM"]
[null,"  MAANDBUDGET"]
[]
[null,"BUDGETTOTALEN","GESCHAT","WERKELIJK","VERSCHIL"]
[null,"Inkomsten",{"$f":"Inkomsten[[#Totals],[GESCHAT]]","v":63300},{"$f":"Inkomsten[[#Totals],[WERKELIJK]]","v":57450},{"$f":"IF('Overzicht maandelijks budget'!$B5=\"Inkomsten\",'Overzicht maandelijks budget'!$D5-'Overzicht maandelijks budget'!$C5,'Overzicht maandelijks budget'!$C5-'Overzicht maandelijks budget'!$D5)","v":{"v":-5850,"d":"-5,850.00 "}}]
[null,"Uitgaven personeel",{"$f":"UitgavenPersoneel[[#Totals],[GESCHAT]]","v":18500},{"$f":"UitgavenPersoneel[[#Totals],[WERKELIJK]]","v":14100},{"$f":"IF('Overzicht maandelijks budget'!$B6=\"Inkomsten\",'Overzicht maandelijks budget'!$D6-'Overzicht maandelijks budget'!$C6,'Overzicht maandelijks budget'!$C6-'Overzicht maandelijks budget'!$D6)","v":{"v":4400,"d":"4,400.00"}}]
[null,"Operationele kosten",{"$f":"OperationeleKosten[[#Totals],[GESCHAT]]","v":36000},{"$f":"OperationeleKosten[[#Totals],[WERKELIJK]]","v":35530},{"$f":"IF('Overzicht maandelijks budget'!$B7=\"Inkomsten\",'Overzicht maandelijks budget'!$D7-'Overzicht maandelijks budget'!$C7,'Overzicht maandelijks budget'!$C7-'Overzicht maandelijks budget'!$D7)","v":{"v":470,"d":"470.00"}}]
[null,"Saldo (inkomsten minus uitgaven)",{"$f":"C5-C6-C7","v":8800},{"$f":"D5-D6-D7","v":7820},{"$f":"SUBTOTAL(109,Table2[VERSCHIL])","v":{"v":-980,"d":"-980.00 "}}]
[]
[null,"WAT IS DE TOP 5 MET MIJN DUURSTE WERKELIJKE OPERATIONELE UITGAVEN?"]
[null,"WERKELIJKE KOSTEN","BEDRAG","PERCENTAGE VAN UITGAVEN","15% REDUCTIE"]
[null,{"$f":"INDEX(OperationeleKosten[],MATCH(Top5Expenses[[#This Row],[BEDRAG]],OperationeleKosten[TOP 5 BEDRAGEN],0),1)","v":"Onderhoud en reparaties"},{"$f":"LARGE(OperationeleKosten[TOP 5 BEDRAGEN],1)","v":4600.000014},{"$f":"Top5Expenses[[#This Row],[BEDRAG]]/$D$7","v":{"v":0.12946805555868282,"d":"12.9%"}},{"$f":"Top5Expenses[[#This Row],[BEDRAG]]*0.15","v":690.0000021}]
[null,{"$f":"INDEX(OperationeleKosten[],MATCH(Top5Expenses[[#This Row],[BEDRAG]],OperationeleKosten[TOP 5 BEDRAGEN],0),1)","v":"Benodigdheden"},{"$f":"LARGE(OperationeleKosten[TOP 5 BEDRAGEN],2)","v":4500.00002},{"$f":"Top5Expenses[[#This Row],[BEDRAG]]/$D$7","v":{"v":0.12665353278919225,"d":"12.7%"}},{"$f":"Top5Expenses[[#This Row],[BEDRAG]]*0.15","v":675.000003}]
[null,{"$f":"INDEX(OperationeleKosten[],MATCH(Top5Expenses[[#This Row],[BEDRAG]],OperationeleKosten[TOP 5 BEDRAGEN],0),1)","v":"Huur of hypotheek"},{"$f":"LARGE(OperationeleKosten[TOP 5 BEDRAGEN],3)","v":4500.000017},{"$f":"Top5Expenses[[#This Row],[BEDRAG]]/$D$7","v":{"v":0.12665353270475654,"d":"12.7%"}},{"$f":"Top5Expenses[[#This Row],[BEDRAG]]*0.15","v":675.00000255}]
[null,{"$f":"INDEX(OperationeleKosten[],MATCH(Top5Expenses[[#This Row],[BEDRAG]],OperationeleKosten[TOP 5 BEDRAGEN],0),1)","v":"Belastingen"},{"$f":"LARGE(OperationeleKosten[TOP 5 BEDRAGEN],4)","v":3200.000021},{"$f":"Top5Expenses[[#This Row],[BEDRAG]]/$D$7","v":{"v":0.09006473461863214,"d":"9.0%"}},{"$f":"Top5Expenses[[#This Row],[BEDRAG]]*0.15","v":480.00000314999994}]
[null,{"$f":"INDEX(OperationeleKosten[],MATCH(Top5Expenses[[#This Row],[BEDRAG]],OperationeleKosten[TOP 5 BEDRAGEN],0),1)","v":"Reclame"},{"$f":"LARGE(OperationeleKosten[TOP 5 BEDRAGEN],5)","v":2500.000005},{"$f":"Top5Expenses[[#This Row],[BEDRAG]]/$D$7","v":{"v":0.07036307359977484,"d":"7.0%"}},{"$f":"Top5Expenses[[#This Row],[BEDRAG]]*0.15","v":375.00000074999997}]
[null,"Totaal",{"$f":"SUBTOTAL(109,Top5Expenses[BEDRAG])","v":{"v":19300.000077000004,"d":"19,300.00"}},{"$f":"SUBTOTAL(109,Top5Expenses[PERCENTAGE VAN UITGAVEN])","v":{"v":0.5432029292710385,"d":"54.3%"}},{"$f":"SUBTOTAL(109,Top5Expenses[15% REDUCTIE])","v":{"v":2895.0000115499997,"d":"2,895.00"}}]

{"sheet":"Inkomsten","index":1,"n_rows":8,"n_cols":6,"rows_kept":8,"merged":[[0,1,0,3],[1,1,1,3]]}
[null,"     BEDRIJFSNAAM",null,null,"DATUM","DATUM"]
[null,"  MAANDBUDGET"]
[]
[null,"INKOMSTEN","GESCHAT","WERKELIJK","TOP 5 BEDRAGEN","VERSCHIL"]
[null,"Netto verkopen",60000,54000,{"$f":"Inkomsten[[#This Row],[WERKELIJK]]+(10^-6)*ROW(Inkomsten[[#This Row],[WERKELIJK]])","v":54000.000005},{"$f":"Inkomsten[[#This Row],[WERKELIJK]]-Inkomsten[[#This Row],[GESCHAT]]","v":-6000}]
[null,"Rentebaten",3000,3000,{"$f":"Inkomsten[[#This Row],[WERKELIJK]]+(10^-6)*ROW(Inkomsten[[#This Row],[WERKELIJK]])","v":3000.000006},{"$f":"Inkomsten[[#This Row],[WERKELIJK]]-Inkomsten[[#This Row],[GESCHAT]]","v":0}]
[null,"Verkoop van activa (winst/verlies)",300,450,{"$f":"Inkomsten[[#This Row],[WERKELIJK]]+(10^-6)*ROW(Inkomsten[[#This Row],[WERKELIJK]])","v":450.000007},{"$f":"Inkomsten[[#This Row],[WERKELIJK]]-Inkomsten[[#This Row],[GESCHAT]]","v":150}]
[null,"Totale inkomsten",{"$f":"SUBTOTAL(109,Inkomsten[GESCHAT])","v":63300},{"$f":"SUBTOTAL(109,Inkomsten[WERKELIJK])","v":57450},null,{"$f":"SUBTOTAL(109,Inkomsten[VERSCHIL])","v":-5850}]

{"sheet":"Uitgaven personeel","index":2,"n_rows":19,"n_cols":6,"rows_kept":19,"merged":[[0,1,0,3],[1,1,1,3]]}
[null,"     BEDRIJFSNAAM",null,null,"DATUM","DATUM"]
[null,"  MAANDBUDGET"]
[]
[null,"UITGAVEN PERSONEEL","GESCHAT","WERKELIJK","TOP 5 BEDRAGEN","VERSCHIL"]
[null,"Salaris",9500,9600,{"$f":"UitgavenPersoneel[[#This Row],[WERKELIJK]]+(10^-6)*ROW(UitgavenPersoneel[[#This Row],[WERKELIJK]])","v":9600.000005},{"$f":"UitgavenPersoneel[[#This Row],[GESCHAT]]-UitgavenPersoneel[[#This Row],[WERKELIJK]]","v":-100}]
[null,"Beloningen personeel",4000,0,{"$f":"UitgavenPersoneel[[#This Row],[WERKELIJK]]+(10^-6)*ROW(UitgavenPersoneel[[#This Row],[WERKELIJK]])","v":6e-06},{"$f":"UitgavenPersoneel[[#This Row],[GESCHAT]]-UitgavenPersoneel[[#This Row],[WERKELIJK]]","v":4000}]
[null,"Commissie",5000,4500,{"$f":"UitgavenPersoneel[[#This Row],[WERKELIJK]]+(10^-6)*ROW(UitgavenPersoneel[[#This Row],[WERKELIJK]])","v":4500.000007},{"$f":"UitgavenPersoneel[[#This Row],[GESCHAT]]-UitgavenPersoneel[[#This Row],[WERKELIJK]]","v":500}]
[null,"Totaal aan uitgaven voor personeel",{"$f":"SUBTOTAL(109,UitgavenPersoneel[GESCHAT])","v":18500},{"$f":"SUBTOTAL(109,UitgavenPersoneel[WERKELIJK])","v":14100},null,{"$f":"SUBTOTAL(109,UitgavenPersoneel[VERSCHIL])","v":4400}]
{"$rows_empty":10}
[{"$nulls":5}," "]

{"sheet":"Operationele kosten","index":3,"n_rows":25,"n_cols":11,"rows_kept":25,"merged":[[0,1,0,3],[1,1,1,3]]}
[null,"     BEDRIJFSNAAM",null,null,"DATUM","DATUM"]
[null,"  MAANDBUDGET"]
[]
[null,"OPERATIONELE KOSTEN","GESCHAT","WERKELIJK","TOP 5 BEDRAGEN","VERSCHIL"]
[null,"Reclame",3000,2500,{"$f":"OperationeleKosten[[#This Row],[WERKELIJK]]+(10^-6)*ROW(OperationeleKosten[[#This Row],[WERKELIJK]])","v":2500.000005},{"$f":"OperationeleKosten[[#This Row],[GESCHAT]]-OperationeleKosten[[#This Row],[WERKELIJK]]","v":500}]
[null,"Oninbare schulden",2000,2000,{"$f":"OperationeleKosten[[#This Row],[WERKELIJK]]+(10^-6)*ROW(OperationeleKosten[[#This Row],[WERKELIJK]])","v":2000.000006},{"$f":"OperationeleKosten[[#This Row],[GESCHAT]]-OperationeleKosten[[#This Row],[WERKELIJK]]","v":0}]
[null,"Contantkortingen",1500,2175,{"$f":"OperationeleKosten[[#This Row],[WERKELIJK]]+(10^-6)*ROW(OperationeleKosten[[#This Row],[WERKELIJK]])","v":2175.000007},{"$f":"OperationeleKosten[[#This Row],[GESCHAT]]-OperationeleKosten[[#This Row],[WERKELIJK]]","v":-675}]
[null,"Afleveringskosten",2000,1500,{"$f":"OperationeleKosten[[#This Row],[WERKELIJK]]+(10^-6)*ROW(OperationeleKosten[[#This Row],[WERKELIJK]])","v":1500.000008},{"$f":"OperationeleKosten[[#This Row],[GESCHAT]]-OperationeleKosten[[#This Row],[WERKELIJK]]","v":500}]
[null,"Afschrijving",1000,1000,{"$f":"OperationeleKosten[[#This Row],[WERKELIJK]]+(10^-6)*ROW(OperationeleKosten[[#This Row],[WERKELIJK]])","v":1000.000009},{"$f":"OperationeleKosten[[#This Row],[GESCHAT]]-OperationeleKosten[[#This Row],[WERKELIJK]]","v":0}]
[null,"Contributies en abonnementen",500,525,{"$f":"OperationeleKosten[[#This Row],[WERKELIJK]]+(10^-6)*ROW(OperationeleKosten[[#This Row],[WERKELIJK]])","v":525.00001},{"$f":"OperationeleKosten[[#This Row],[GESCHAT]]-OperationeleKosten[[#This Row],[WERKELIJK]]","v":-25}]
[null,"Verzekering",1300,1275,{"$f":"OperationeleKosten[[#This Row],[WERKELIJK]]+(10^-6)*ROW(OperationeleKosten[[#This Row],[WERKELIJK]])","v":1275.000011},{"$f":"OperationeleKosten[[#This Row],[GESCHAT]]-OperationeleKosten[[#This Row],[WERKELIJK]]","v":25}]
[null,"Rente",2000,2200,{"$f":"OperationeleKosten[[#This Row],[WERKELIJK]]+(10^-6)*ROW(OperationeleKosten[[#This Row],[WERKELIJK]])","v":2200.000012},{"$f":"OperationeleKosten[[#This Row],[GESCHAT]]-OperationeleKosten[[#This Row],[WERKELIJK]]","v":-200}]
[null,"Juridisch en controles",1000,800,{"$f":"OperationeleKosten[[#This Row],[WERKELIJK]]+(10^-6)*ROW(OperationeleKosten[[#This Row],[WERKELIJK]])","v":800.000013},{"$f":"OperationeleKosten[[#This Row],[GESCHAT]]-OperationeleKosten[[#This Row],[WERKELIJK]]","v":200}]
[null,"Onderhoud en reparaties",4500,4600,{"$f":"OperationeleKosten[[#This Row],[WERKELIJK]]+(10^-6)*ROW(OperationeleKosten[[#This Row],[WERKELIJK]])","v":4600.000014},{"$f":"OperationeleKosten[[#This Row],[GESCHAT]]-OperationeleKosten[[#This Row],[WERKELIJK]]","v":-100}]
[null,"Kantoorbenodigdheden",800,750,{"$f":"OperationeleKosten[[#This Row],[WERKELIJK]]+(10^-6)*ROW(OperationeleKosten[[#This Row],[WERKELIJK]])","v":750.000015},{"$f":"OperationeleKosten[[#This Row],[GESCHAT]]-OperationeleKosten[[#This Row],[WERKELIJK]]","v":50}]
[null,"Portokosten",400,350,{"$f":"OperationeleKosten[[#This Row],[WERKELIJK]]+(10^-6)*ROW(OperationeleKosten[[#This Row],[WERKELIJK]])","v":350.000016},{"$f":"OperationeleKosten[[#This Row],[GESCHAT]]-OperationeleKosten[[#This Row],[WERKELIJK]]","v":50}]
[null,"Huur of hypotheek",4100,4500,{"$f":"OperationeleKosten[[#This Row],[WERKELIJK]]+(10^-6)*ROW(OperationeleKosten[[#This Row],[WERKELIJK]])","v":4500.000017},{"$f":"OperationeleKosten[[#This Row],[GESCHAT]]-OperationeleKosten[[#This Row],[WERKELIJK]]","v":-400}]
[null,"Verkoopuitgaven",350,400,{"$f":"OperationeleKosten[[#This Row],[WERKELIJK]]+(10^-6)*ROW(OperationeleKosten[[#This Row],[WERKELIJK]])","v":400.000018},{"$f":"OperationeleKosten[[#This Row],[GESCHAT]]-OperationeleKosten[[#This Row],[WERKELIJK]]","v":-50}]
[null,"Verzending en opslag",900,840,{"$f":"OperationeleKosten[[#This Row],[WERKELIJK]]+(10^-6)*ROW(OperationeleKosten[[#This Row],[WERKELIJK]])","v":840.000019},{"$f":"OperationeleKosten[[#This Row],[GESCHAT]]-OperationeleKosten[[#This Row],[WERKELIJK]]","v":60},{"$nulls":4}," "]
[null,"Benodigdheden",5000,4500,{"$f":"OperationeleKosten[[#This Row],[WERKELIJK]]+(10^-6)*ROW(OperationeleKosten[[#This Row],[WERKELIJK]])","v":4500.00002},{"$f":"OperationeleKosten[[#This Row],[GESCHAT]]-OperationeleKosten[[#This Row],[WERKELIJK]]","v":500}]
[null,"Belastingen",3000,3200,{"$f":"OperationeleKosten[[#This Row],[WERKELIJK]]+(10^-6)*ROW(OperationeleKosten[[#This Row],[WERKELIJK]])","v":3200.000021},{"$f":"OperationeleKosten[[#This Row],[GESCHAT]]-OperationeleKosten[[#This Row],[WERKELIJK]]","v":-200}]
[null,"Telefoon",250,280,{"$f":"OperationeleKosten[[#This Row],[WERKELIJK]]+(10^-6)*ROW(OperationeleKosten[[#This Row],[WERKELIJK]])","v":280.000022},{"$f":"OperationeleKosten[[#This Row],[GESCHAT]]-OperationeleKosten[[#This Row],[WERKELIJK]]","v":-30}]
[null,"Water, gas, elektriciteit",1400,1385,{"$f":"OperationeleKosten[[#This Row],[WERKELIJK]]+(10^-6)*ROW(OperationeleKosten[[#This Row],[WERKELIJK]])","v":1385.000023},{"$f":"OperationeleKosten[[#This Row],[GESCHAT]]-OperationeleKosten[[#This Row],[WERKELIJK]]","v":15}]
[null,"Overig",1000,750,{"$f":"OperationeleKosten[[#This Row],[WERKELIJK]]+(10^-6)*ROW(OperationeleKosten[[#This Row],[WERKELIJK]])","v":750.000024},{"$f":"OperationeleKosten[[#This Row],[GESCHAT]]-OperationeleKosten[[#This Row],[WERKELIJK]]","v":250}]
[null,"Totale operationele uitgaven",{"$f":"SUBTOTAL(109,OperationeleKosten[GESCHAT])","v":36000},{"$f":"SUBTOTAL(109,OperationeleKosten[WERKELIJK])","v":35530},null,{"$f":"SUBTOTAL(109,OperationeleKosten[VERSCHIL])","v":470}]